bitfinex/quotes_SOLUSD_20220103
["timestamp","ask_amount","ask_price","bid_price","bid_amount"]
[1641228560959,9.0844,170.03,169.96,2.75008085]
[1641228561860,9.0844,170.03,169.96,3.25008085]
[1641228562062,9.0844,170.03,169.96,2.75008085]
[1641228562662,8.8244,170.03,169.96,2.75008085]
[1641228562861,8.8244,170.03,169.96,12.07498085]
[1641228563564,8.8244,170.03,169.94,1.2641]
[1641228563565,8.48,170.02,169.94,1.2641]
[1641228563763,9.90669368,170.02,169.83,8.48]
[1641228563964,8.8293,169.96,169.86,1.2815]
[1641228564364,8.8293,169.96,169.89,4.62625656]
[1641228564967,8.8293,169.96,169.89,5.12625656]
[1641228565966,8.8293,169.96,169.89,5.38625656]
[1641228569470,8.8272,169.98,169.89,5.38625656]
[1641228569670,8.8272,169.98,169.89,13.86625656]
[1641228569870,9.8255,170.03,169.89,13.86625656]
[1641228570073,30.7677,170.03,169.9,23.6497]
[1641228570472,37.9022,170.03,169.9,24.4097]
[1641228570672,37.9022,170.03,169.92,2.45044572]
[1641228570875,37.9022,170.03,169.92,2.95044572]
[1641228571072,29.4222,170.03,169.92,3.21044572]
[1641228571273,8.8263,169.99,169.92,12.03634572]
[1641228571474,8.8263,169.99,169.93,1.2759]
[1641228571873,8.8263,169.99,169.93,2.0359]
[1641228572775,8.8263,169.99,169.94,19.31894971]
[1641228572975,8.8258,170.0,169.94,20.07894971]
[1641228573176,8.8258,170.0,169.95,2.53564681]
[1641228573379,8.8258,170.0,169.95,3.03564681]
[1641228573578,23.0465,170.03,169.95,3.29564681]
[1641228574175,8.8253,170.01,169.95,3.29564681]
[1641228574778,1.2732,170.05,169.95,3.29564681]
[1641228574980,1.7732,170.05,169.95,3.29564681]
[1641228575783,1.7732,170.05,169.95,4.54044681]
[1641228575983,8.8252,170.02,169.95,4.54044681]
[1641228576181,1.2732,170.05,169.95,4.54044681]
[1641228577082,8.8257,170.01,169.95,4.54044681]
[1641228577684,8.8257,170.01,169.95,2.0048]
[1641228578485,8.8257,170.01,169.95,1.5048]
[1641228581086,8.8247,170.02,169.95,1.5048]
[1641228582609,9.5847,170.02,169.92,23.5605]
[1641228582813,8.48,170.01,169.92,23.5605]
[1641228583014,8.8277,169.97,169.92,26.1338072]
[1641228583212,8.8277,169.97,169.92,2.5733072]
[1641228583613,8.8277,169.97,169.9,1.3296]
[1641228584611,8.8277,169.97,169.91,2.96708932]
[1641228586820,8.8277,169.97,169.91,3.22708932]
[1641228591022,8.8277,169.97,169.91,0.26]
[1641228591222,8.8277,169.97,169.9,1.5896]
[1641228591421,8.8277,169.97,169.9,1.3296]
[1641228592120,8.8277,169.97,169.9,3.62366659]
[1641228592523,8.8277,169.97,169.9,1.3296]
[1641228592722,8.8277,169.97,169.9,1.5896]
[1641228593126,8.8277,169.97,169.9,0.26]
[1641228593526,8.8277,169.97,169.89,2.575986]
[1641228593822,9.3277,169.97,169.89,2.315986]
[1641228594924,9.3277,169.97,169.9,2.8222561]
[1641228595124,8.8277,169.97,169.89,2.315986]
[1641228595524,9.3277,169.97,169.89,2.575986]
[1641228595925,9.3277,169.97,169.89,2.315986]
[1641228596326,10.75439368,169.97,169.89,2.315986]
[1641228596526,19.49439368,169.97,169.89,2.315986]
[1641228597125,43.43819368,169.97,169.89,2.315986]
[1641228598125,43.43819368,169.97,169.89,2.575986]
[1641228598325,42.0115,169.97,169.89,2.575986]
[1641228599927,41.7515,169.97,169.89,2.575986]
[1641228600525,43.17819368,169.97,169.89,2.575986]
[1641228600925,43.17819368,169.97,169.89,2.315986]
[1641228601326,43.43819368,169.97,169.89,2.315986]
[1641228603228,64.0,169.96,169.79,6.13960817]
[1641228603432,8.8348,169.88,169.77,1.3222]
[1641228603630,15.8368,169.88,169.77,1.3222]
[1641228603832,16.3368,169.88,169.77,1.3222]
[1641228604031,18.02349368,169.88,169.77,35.29324647]
[1641228604727,19.36949368,169.88,169.77,35.29324647]
[1641228605132,19.36949368,169.88,169.77,33.97104647]
[1641228605328,27.84949368,169.88,169.77,33.97104647]
[1641228605830,27.84949368,169.88,169.77,34.23104647]
[1641228606227,26.4228,169.88,169.77,2.575986]
[1641228606428,26.4228,169.88,169.77,2.315986]
[1641228606829,19.4208,169.88,169.77,2.315986]
[1641228607228,19.4208,169.88,169.78,23.33098186]
[1641228607829,19.4208,169.88,169.78,23.59098186]
[1641228608030,19.4208,169.88,169.79,3.02029109]
[1641228608432,19.4208,169.88,169.79,3.28029109]
[1641228608857,19.4208,169.88,169.79,3.02029109]
[1641228610531,18.9208,169.88,169.79,3.28029109]
[1641228610731,17.3148,169.88,169.79,3.28029109]
[1641228610931,8.8348,169.88,169.79,3.28029109]
[1641228611734,8.8348,169.88,169.79,4.55059109]
[1641228611938,8.8348,169.88,169.79,13.38349109]
[1641228612133,8.8316,169.9,169.79,14.81018477]
[1641228613135,17.6568,169.91,169.79,14.81018477]
[1641228615939,17.6568,169.91,169.79,14.55018477]
[1641228616568,17.6568,169.91,169.79,23.03018477]
[1641228617371,17.6568,169.91,169.79,21.60349109]
[1641228617968,17.6568,169.91,169.79,21.86349109]
[1641228618870,17.6568,169.91,169.79,45.11329109]
[1641228619972,17.6568,169.91,169.79,47.42927709]
[1641228623979,129.16371689,170.05,170.03,24.27514342]
[1641228624174,4.98121769,170.12,170.05,23.0]
[1641228624175,9.0304,170.06,170.05,23.0]
[1641228624376,4.98121769,170.08,170.06,2.76773069]
[1641228624577,4.98121769,170.08,170.07,47.48]
[1641228624773,4.98121769,170.08,170.07,38.48]
[1641228624974,4.98121769,170.08,170.07,38.74]
[1641228625184,15.35734236,170.14,170.07,47.5579]
[1641228625778,15.35734236,170.14,170.07,17.5579]
[1641228625987,15.35734236,170.14,170.07,8.48]
[1641228626184,0.76,170.14,170.06,2.76773069]
[1641228626382,0.26,170.14,170.06,2.76773069]
[1641228626585,25.86929682,170.16,170.06,2.76773069]
[1641228626785,24.68929682,170.16,170.06,2.76773069]
[1641228626986,24.42929682,170.16,170.06,3.02773069]
[1641228627185,24.42929682,170.16,170.06,11.50773069]
[1641228627611,24.42929682,170.16,170.06,20.32693069]
[1641228628686,24.42929682,170.16,170.07,20.39754047]
[1641228628887,24.42929682,170.16,170.07,28.87754047]
[1641228629086,8.9343,170.2,170.07,28.87754047]
[1641228629087,8.9343,170.2,170.07,29.13754047]
[1641228629986,36.37312949,170.2,170.09,2.68030105]
[1641228630187,36.37312949,170.2,170.09,11.16030105]
[1641228630389,27.43882949,170.2,170.09,12.84699473]
[1641228630589,48.0367,170.24,170.09,12.84699473]
[1641228630786,48.0367,170.24,170.09,11.42030105]
[1641228630986,48.0367,170.24,170.09,40.80410105]
[1641228631393,48.0367,170.24,170.09,11.16030105]
[1641228631587,24.31818219,170.23,170.09,11.16030105]
[1641228631987,24.81818219,170.23,170.09,19.97810105]
[1641228632390,25.07818219,170.23,170.09,19.97810105]
[1641228632590,25.07818219,170.23,170.09,20.23810105]
[1641228632791,24.57818219,170.23,170.09,20.23810105]
[1641228632993,25.07818219,170.23,170.09,20.23810105]
[1641228633390,24.81818219,170.23,170.09,20.23810105]
[1641228634490,25.07818219,170.23,170.09,19.97810105]
[1641228635891,25.07818219,170.23,170.09,20.23810105]
[1641228636597,24.81818219,170.23,170.09,35.85030707]
[1641228638097,25.07818219,170.23,170.09,35.85030707]
[1641228640500,24.81818219,170.23,170.09,35.85030707]
[1641228641400,24.81818219,170.23,170.09,35.26347284]
[1641228641800,25.07818219,170.23,170.09,35.26347284]
[1641228642203,25.07818219,170.23,170.09,19.65126682]
[1641228642626,24.31818219,170.23,170.09,19.65126682]
[1641228643828,24.81818219,170.23,170.09,19.65126682]
[1641228644031,24.31818219,170.23,170.09,19.65126682]
[1641228644628,24.31818219,170.23,170.1,19.15626967]
[1641228644829,24.31818219,170.23,170.13,2.81354468]
[1641228645032,24.31818219,170.23,170.13,3.07354468]
[1641228645429,24.57818219,170.23,170.13,3.07354468]
[1641228646429,24.57818219,170.23,170.13,11.88954468]
[1641228647228,24.31818219,170.23,170.13,11.88954468]
[1641228647832,24.31818219,170.23,170.13,3.07354468]
[1641228648931,25.07818219,170.23,170.13,3.07354468]
[1641228649431,33.89488219,170.23,170.13,3.07354468]
[1641228649635,33.39488219,170.23,170.13,2.81354468]
[1641228649832,25.07818219,170.23,170.13,2.81354468]
[1641228650636,33.89478219,170.23,170.13,2.81354468]
[1641228650836,25.07818219,170.23,170.13,11.62964468]
[1641228651034,25.07818219,170.23,170.13,11.88964468]
[1641228651237,24.81818219,170.23,170.13,11.88964468]
[1641228651836,24.31818219,170.23,170.13,11.88964468]
[1641228652938,24.57818219,170.23,170.13,11.88964468]
[1641228653738,56.72993744,170.24,170.13,11.88964468]
[1641228653944,7.9919993,170.23,170.13,11.88964468]
[1641228654347,8.48,170.22,170.11,8.8167]
[1641228654541,8.48,170.22,170.09,18.38471706]
[1641228654742,8.98,170.22,170.09,18.38471706]
[1641228654944,1.42669368,170.21,170.09,18.38471706]
[1641228655143,8.48,170.2,170.09,18.38471706]
[1641228655350,8.8213,170.15,170.09,10.33441706]
[1641228655546,7.9919993,170.14,170.09,0.00441706]
[1641228655746,9.41869298,170.14,170.03,24.27514342]
[1641228655949,10.17869298,170.14,170.03,24.27514342]
[1641228656652,6.63961245,170.13,170.03,24.27514342]
[1641228656850,8.56630613,170.13,170.03,24.27514342]
[1641228657052,8.82630613,170.13,170.03,24.53514342]
[1641228657452,8.8224,170.12,170.03,24.53514342]
[1641228657852,9.5824,170.12,170.03,24.53514342]
[1641228658551,11.00909368,170.12,170.03,24.27514342]
[1641228659452,11.00909368,170.12,170.03,26.59112942]
[1641228659853,8.48,170.11,170.03,26.59112942]
[1641228660052,8.8239,170.09,170.03,26.59112942]
[1641228660453,9.0839,170.09,170.03,26.59112942]
[1641228660652,10.51059368,170.09,170.03,26.59112942]
[1641228660854,11.01059368,170.09,170.03,26.59112942]
[1641228661657,9.0839,170.09,170.03,26.59112942]
[1641228662457,9.5839,170.09,170.03,26.59112942]
[1641228662855,1.42669368,170.08,170.03,26.59112942]
[1641228663057,1.68669368,170.08,170.03,26.59112942]
[1641228663356,7.9919993,170.06,170.03,26.59112942]
[1641228663558,5.56439994,170.05,170.03,26.59112942]
[1641228663956,5.82439994,170.05,170.03,26.59112942]
[1641228664259,62.0,170.04,169.93,81.9033]
[1641228664458,62.0,170.04,169.93,73.4233]
[1641228664656,62.76,170.04,169.91,74.923]
[1641228665159,62.76,170.04,169.92,2.68238744]
[1641228665357,62.76,170.04,169.92,11.50928744]
[1641228665557,62.26,170.04,169.92,11.50928744]
[1641228666459,71.0865,170.04,169.92,11.50928744]
[1641228667062,8.48,170.03,169.91,2.315986]
[1641228667462,8.0700551,170.02,169.91,2.315986]
[1641228667663,6.64336142,170.02,169.91,2.575986]
[1641228667866,24.11169678,170.01,169.91,2.575986]
[1641228668164,24.37169678,170.01,169.91,2.575986]
[1641228668667,34.62669046,170.01,169.91,2.315986]
[1641228668892,8.48,170.0,169.91,2.315986]
[1641228669089,14.594,170.0,169.91,2.315986]
[1641228669298,1.42669368,169.99,169.91,2.315986]
[1641228669597,10.16669368,169.99,169.91,2.315986]
[1641228669796,8.8313,169.95,169.91,2.315986]
[1641228669994,9.24618223,169.94,169.91,2.315986]
[1641228670194,5.56439994,169.93,169.91,2.315986]
[1641228672599,5.82439994,169.93,169.91,2.315986]
[1641228672999,5.56439994,169.93,169.91,2.315986]
[1641228673198,9.24618223,169.94,169.91,2.315986]
[1641228673400,46.56439994,169.93,169.92,2.43670758]
[1641228673598,5.56439994,169.93,169.91,2.315986]
[1641228674799,5.56439994,169.93,169.91,2.575986]
[1641228675201,5.56439994,169.93,169.91,0.26]
[1641228675600,5.56439994,169.93,169.85,10.4319]
[1641228675809,8.8298,169.97,169.85,10.4319]
[1641228675810,8.48,169.99,169.85,10.4319]
[1641228676203,8.48,169.99,169.86,2.98384722]
[1641228676402,2.65649368,170.0,169.86,11.46384722]
[1641228676607,3.15649368,170.0,169.86,11.72384722]
[1641228676803,30.12473403,169.99,169.86,11.72384722]
[1641228677205,30.12473403,169.99,169.86,12.95384722]
[1641228677405,30.12473403,169.99,169.9,8.8278]
[1641228677702,30.12473403,169.99,169.85,31.741985]
[1641228677703,0.32033849,169.97,169.85,2.315985]
[1641228677905,8.48,169.96,169.85,2.315985]
[1641228678105,8.48,169.95,169.85,2.315985]
[1641228678306,13.547,169.95,169.85,2.315985]
[1641228678502,3.23314498,169.94,169.85,2.315985]
[1641228678704,4.65983866,169.94,169.85,2.315985]
[1641228678905,8.8326,169.9,169.85,2.315985]
[1641228679106,24.94659899,169.89,169.85,2.315985]
[1641228679811,1.42669368,169.88,169.85,2.315985]
[1641228680007,5.56439994,169.87,169.85,2.315985]
[1641228680208,14.39849994,169.87,169.85,2.315985]
[1641228683908,15.82519362,169.87,169.85,2.315985]
[1641228684116,16.08519362,169.87,169.85,2.315985]
[1641228686817,2.31,169.85,169.78,73.3817]
[1641228687118,8.8366,169.82,169.76,1.3602]
[1641228687319,8.8366,169.82,169.74,26.1346]
[1641228687520,8.40529502,169.81,169.74,26.1346]
[1641228687743,8.40529502,169.81,169.74,3.76704891]
[1641228687942,8.66529502,169.81,169.74,3.76704891]
[1641228688146,8.66529502,169.81,169.74,6.08303491]
[1641228688344,8.66529502,169.81,169.74,4.79243491]
[1641228689045,8.66529502,169.81,169.74,5.05243491]
[1641228689244,8.66529502,169.81,169.74,4.79243491]
[1641228689447,8.838,169.79,169.74,4.79243491]
[1641228690650,8.838,169.79,169.74,5.05243491]
[1641228690846,8.838,169.79,169.74,2.575986]
[1641228691848,8.838,169.79,169.74,4.99252667]
[1641228694653,8.838,169.79,169.74,2.575986]
[1641228695257,8.838,169.79,169.74,2.315986]
[1641228695455,17.42369368,169.79,169.74,2.315986]
[1641228695653,17.68369368,169.79,169.74,2.315986]
[1641228696254,18.18369368,169.79,169.74,2.315986]
[1641228698056,18.18369368,169.79,169.7,2.58255203]
[1641228698758,11.02469368,169.79,169.7,2.58255203]
[1641228698960,11.02469368,169.79,169.7,2.84255203]
[1641228699159,9.598,169.79,169.7,2.84255203]
[1641228699559,11.02469368,169.79,169.7,2.84255203]
[1641228700259,11.02469368,169.79,169.68,48.8838]
[1641228700461,11.02469368,169.79,169.67,77.1764]
[1641228700659,8.48,169.78,169.7,2.315986]
[1641228700860,8.8413,169.74,169.7,2.315986]
[1641228701262,24.94659899,169.73,169.7,2.315986]
[1641228701469,5.56439994,169.72,169.7,2.315986]
[1641228702262,14.40629994,169.72,169.7,2.315986]
[1641228702663,5.56439994,169.72,169.7,2.315986]
[1641228703867,8.48,169.77,169.7,4.72738885]
[1641228704064,8.48,169.77,169.71,0.5]
[1641228704565,32.39608362,169.78,169.71,0.5]
[1641228704768,24.116,169.81,169.71,0.5]
[1641228704966,17.3254,169.82,169.71,0.5]
[1641228705371,17.8254,169.82,169.71,0.5]
[1641228705568,8.8382,169.79,169.71,0.5]
[1641228705766,29.33375536,169.78,169.71,0.5]
[1641228706569,8.8454,169.82,169.71,0.5]
[1641228706969,9.1054,169.82,169.71,0.5]
[1641228707570,37.07826987,169.81,169.71,9.3372]
[1641228707971,37.33826987,169.81,169.71,0.76]
[1641228708173,37.07826987,169.81,169.71,0.76]
[1641228708572,37.07826987,169.81,169.71,0.5]
[1641228708773,37.07826987,169.81,169.71,9.3375]
[1641228708977,37.07826987,169.81,169.71,9.5975]
[1641228709574,37.33826987,169.81,169.71,9.5975]
[1641228709773,37.07826987,169.81,169.71,9.5975]
[1641228712077,37.07826987,169.81,169.71,11.913485]
[1641228713182,37.33826987,169.81,169.71,11.913485]
[1641228713382,37.33826987,169.81,169.71,11.653485]
[1641228713579,37.33826987,169.81,169.71,2.815985]
[1641228714202,37.83826987,169.81,169.71,2.815985]
[1641228714402,37.33826987,169.81,169.71,2.315985]
[1641228715002,37.33826987,169.81,169.71,2.575985]
[1641228716105,38.76496355,169.81,169.71,2.575985]
[1641228716305,39.26496355,169.81,169.71,2.575985]
[1641228716705,47.74496355,169.81,169.71,2.575985]
[1641228716905,47.74496355,169.81,169.71,2.315985]
[1641228717907,47.74496355,169.81,169.71,5.28494395]
[1641228718310,47.74496355,169.81,169.71,2.315985]
[1641228718511,52.66996355,169.81,169.71,2.315985]
[1641228719717,47.74496355,169.81,169.71,2.315985]
[1641228720714,47.74496355,169.81,169.71,2.575985]
[1641228720915,47.48496355,169.81,169.71,2.575985]
[1641228721516,47.48496355,169.81,169.71,2.315985]
[1641228721716,47.48496355,169.81,169.71,2.575985]
[1641228722118,47.74496355,169.81,169.71,2.575985]
[1641228722317,47.74496355,169.81,169.71,2.315985]
[1641228723121,47.48496355,169.81,169.71,2.315985]
[1641228723318,47.48496355,169.81,169.71,2.575985]
[1641228724119,47.48496355,169.81,169.71,3.832885]
[1641228724322,47.48496355,169.81,169.71,3.572885]
[1641228726226,47.74496355,169.81,169.71,3.572885]
[1641228726624,47.74496355,169.81,169.71,2.315985]
[1641228728627,50.92053594,169.81,169.71,2.315985]
[1641228729030,50.66053594,169.81,169.71,2.315985]
[1641228730530,8.8421,169.76,169.71,2.315985]
[1641228730833,5.11112414,169.74,169.71,2.315985]
[1641228731030,5.56439994,169.73,169.71,2.315985]
[1641228731432,5.82439994,169.73,169.71,2.315985]
[1641228732431,14.66679994,169.73,169.71,2.315985]
[1641228735233,14.66679994,169.73,169.71,0.005985]
[1641228735435,16.59349362,169.73,169.71,0.005985]
[1641228740268,25.50829362,169.73,169.71,0.005985]
[1641228740869,72.48,169.72,169.71,0.005985]
[1641228741170,105.0163,169.72,169.71,0.005985]
[1641228741369,106.94299368,169.72,169.71,0.005985]
[1641228743667,106.68299368,169.72,169.71,0.005985]
[1641228744968,106.94299368,169.72,169.71,0.005985]
[1641228746170,41.5163,169.72,169.71,0.005985]
[1641228751487,41.2563,169.72,169.71,0.005985]
[1641228751687,17.3245,169.72,169.71,0.005985]
[1641228751885,8.8445,169.72,169.71,0.505985]
[1641228752583,17.7556,169.73,169.71,0.505985]
[1641228752784,17.7556,169.73,169.71,0.005985]
[1641228752986,18.0156,169.73,169.71,0.005985]
[1641228754089,17.7556,169.73,169.71,0.005985]
[1641228754289,42.53219997,169.72,169.71,0.005985]
[1641228754487,2.53219997,169.72,169.71,0.005985]
[1641228754890,8.9148,169.73,169.71,0.505985]
[1641228755089,150.48510738,169.8,169.71,0.505985]
[1641228755490,24.395,169.79,169.71,0.505985]
[1641228755892,23.97681143,169.78,169.71,0.505985]
[1641228756290,8.8403,169.75,169.71,0.505985]
[1641228756491,9.37508258,169.74,169.71,0.005985]
[1641228756693,5.56439994,169.73,169.71,0.005985]
[1641228758697,9.37508258,169.74,169.71,0.505985]
[1641228759724,9.37508258,169.74,169.71,0.005985]
[1641228760121,9.37508258,169.74,169.72,0.5]
[1641228760519,9.37508258,169.74,169.71,0.005985]
[1641228760920,5.56439994,169.73,169.71,0.005985]
[1641228761120,9.37508258,169.74,169.71,0.005985]
[1641228762122,3.03219997,169.73,169.71,0.005985]
[1641228762923,9.37508258,169.74,169.71,0.505985]
[1641228765024,9.37508258,169.74,169.72,2.81427152]
[1641228765229,9.37508258,169.74,169.71,0.505985]
[1641228765424,3.03219997,169.73,169.71,0.505985]
[1641228766225,3.03219997,169.73,169.71,0.005985]
[1641228766425,5.56439994,169.73,169.71,0.005985]
[1641228766826,8.859,169.76,169.72,0.5]
[1641228767026,41.8582,169.82,169.72,2.75606034]
[1641228767226,17.3254,169.82,169.72,2.75606034]
[1641228767426,17.8254,169.82,169.72,3.01606034]
[1641228767829,31.87153316,169.81,169.72,11.85316034]
[1641228768630,31.87153316,169.81,169.73,24.95297963]
[1641228769029,31.87153316,169.81,169.73,25.21297963]
[1641228770032,31.87153316,169.81,169.73,0.26]
[1641228770233,31.87153316,169.81,169.77,8.8347]
[1641228770631,31.87153316,169.81,169.77,0.26]
[1641228771334,31.87153316,169.81,169.75,3.12751963]
[1641228771532,8.6516,169.83,169.78,2.3264823]
[1641228771935,8.6516,169.83,169.78,2.5864823]
[1641228772533,8.6516,169.83,169.78,11.4204823]
[1641228773233,34.91408767,169.84,169.78,11.4204823]
[1641228773434,26.11868767,169.84,169.78,11.4204823]
[1641228775748,11.1646,169.85,169.78,11.4204823]
[1641228776548,11.1646,169.85,169.78,2.5864823]
[1641228777153,11.4246,169.85,169.78,2.5864823]
[1641228777357,30.78202558,169.84,169.78,2.5864823]
[1641228777553,30.78202558,169.84,169.78,11.4203823]
[1641228778403,30.78202558,169.84,169.75,25.7452]
[1641228778599,31.04202558,169.84,169.75,1.2804]
[1641228778799,39.52202558,169.84,169.75,1.2804]
[1641228779400,39.52202558,169.84,169.75,3.70284092]
[1641228779401,48.35722558,169.84,169.75,3.70284092]
[1641228779802,48.35722558,169.84,169.75,3.96284092]
[1641228780001,48.85722558,169.84,169.75,1.5404]
[1641228780404,48.85722558,169.84,169.73,72.4825]
[1641228781005,1.42669368,169.83,169.72,27.56242623]
[1641228781207,8.8384,169.78,169.72,27.56242623]
[1641228781433,2.56986843,169.77,169.72,2.77432623]
[1641228781730,2.56986843,169.77,169.71,0.005985]
[1641228781932,2.82986843,169.77,169.71,0.005985]
[1641228783132,8.8393,169.76,169.71,0.005985]
[1641228783531,9.5993,169.76,169.71,0.005985]
[1641228785133,0.5,169.76,169.71,0.005985]
[1641228785533,11.90856843,169.77,169.71,0.005985]
[1641228785734,2.56986843,169.77,169.71,0.005985]
[1641228786533,2.80439841,169.83,169.71,0.005985]
[1641228786534,8.48,169.82,169.71,0.005985]
[1641228787235,8.48,169.82,169.71,10.186685]
[1641228787433,8.48,169.82,169.72,24.81995281]
[1641228787639,27.74897671,169.81,169.72,24.81995281]
[1641228787833,27.74897671,169.81,169.72,25.07995281]
[1641228788035,8.8356,169.83,169.73,2.68169976]
[1641228788434,8.8356,169.83,169.75,8.8356]
[1641228788833,8.8356,169.83,169.75,9.0956]
[1641228789033,31.71180156,169.82,169.75,9.0956]
[1641228789437,40.54790156,169.82,169.75,0.26]
[1641228789835,40.54790156,169.82,169.74,9.0961]
[1641228791440,40.54790156,169.82,169.72,10.1452]
[1641228791638,40.80790156,169.82,169.72,10.1452]
[1641228791839,49.78790156,169.82,169.72,10.1452]
[1641228792038,49.78790156,169.82,169.72,1.3085]
[1641228792438,49.28790156,169.82,169.73,28.9388302]
[1641228792641,8.48,169.82,169.73,28.9388302]
[1641228792840,8.8356,169.83,169.73,28.9388302]
[1641228793042,11.1646,169.85,169.73,29.1988302]
[1641228793438,32.01426561,169.84,169.73,29.1988302]
[1641228794138,32.01426561,169.84,169.73,3.16119615]
[1641228794339,40.1379672,169.84,169.73,11.99759615]
[1641228794540,39.3779672,169.84,169.73,11.99759615]
[1641228798150,30.5428672,169.84,169.73,11.99759615]
[1641228798353,2.31,169.85,169.73,11.99759615]
[1641228798549,2.31,169.85,169.74,8.48]
[1641228798749,2.31,169.85,169.79,8.8322]
[1641228798949,2.31,169.85,169.8,2.14710865]
[1641228799152,2.31,169.85,169.8,1.64710865]
[1641228799350,2.31,169.85,169.8,1.90710865]
[1641228799550,2.31,169.85,169.8,0.26]
[1641228799749,2.31,169.85,169.8,9.0926]
[1641228799950,2.31,169.85,169.8,8.8326]
[1641228800151,2.31,169.85,169.77,8.74]
[1641228800551,2.31,169.85,169.77,11.58353375]
[1641228800950,2.31,169.85,169.8,2.90043483]
[1641228801353,2.31,169.85,169.8,3.16043483]
[1641228802352,2.31,169.85,169.82,8.832]
[1641228802554,2.31,169.85,169.83,0.5]
[1641228803353,7.87439994,169.85,169.83,0.5]
[1641228803555,10.31278368,169.85,169.83,2.315985]
[1641228803757,4.74838374,169.85,169.83,2.315985]
[1641228803953,4.74838374,169.85,169.83,2.575985]
[1641228804357,4.74838374,169.85,169.83,2.315985]
[1641228804556,49.56439994,169.84,169.83,2.315985]
[1641228804956,5.56439994,169.84,169.83,2.315985]
[1641228806960,5.82439994,169.84,169.83,2.315985]
[1641228807160,6.32439994,169.84,169.83,2.315985]
[1641228808561,15.15919994,169.84,169.83,2.315985]
[1641228809766,14.65919994,169.84,169.83,2.315985]
[1641228809967,14.39919994,169.84,169.83,2.315985]
[1641228810567,13.58268374,169.85,169.83,2.815985]
[1641228810967,13.58268374,169.85,169.83,2.315985]
[1641228812072,13.84268374,169.85,169.83,2.315985]
[1641228814371,5.56439994,169.84,169.8,2.70217871]
[1641228814572,14.39919994,169.84,169.8,0.26]
[1641228814971,14.39919994,169.84,169.75,104.5054]
[1641228815493,14.39919994,169.84,169.76,2.91147732]
[1641228815894,14.39919994,169.84,169.76,3.17147732]
[1641228819293,14.39919994,169.84,169.76,5.48746232]
[1641228820294,14.39919994,169.84,169.76,2.575985]
[1641228820694,14.39919994,169.84,169.76,2.315985]
[1641228820894,15.15919994,169.84,169.76,2.315985]
[1641228821295,14.65919994,169.84,169.76,2.315985]
[1641228821604,29.73889362,169.84,169.76,2.315985]
[1641228821795,30.23889362,169.84,169.76,0.005985]
[1641228822095,8.8401,169.8,169.76,0.005985]
[1641228822397,9.90669368,169.79,169.76,0.005985]
[1641228822705,30.20247656,169.78,169.76,0.005985]
[1641228822901,30.70247656,169.78,169.76,0.005985]
[1641228823100,1.42669368,169.77,169.76,0.005985]
[1641228823302,10.26699368,169.77,169.76,0.005985]
[1641228823502,11.02699368,169.77,169.76,0.005985]
[1641228823702,9.6003,169.77,169.76,0.005985]
[1641228825904,15.16469994,169.77,169.76,0.005985]
[1641228826306,14.90469994,169.77,169.76,0.005985]
[1641228826708,14.40469994,169.77,169.76,0.005985]
[1641228826905,5.56439994,169.77,169.76,0.005985]
[1641228827705,1.47139841,169.8,169.76,0.505985]
[1641228827907,27.15625859,169.81,169.76,0.505985]
[1641228828507,35.99265859,169.81,169.76,0.505985]
[1641228830210,8.8364,169.81,169.76,0.505985]
[1641228836018,10.26309368,169.81,169.76,0.505985]
[1641228836619,10.76309368,169.81,169.76,0.005985]
[1641228837220,10.26309368,169.81,169.76,0.005985]
[1641228837421,10.76309368,169.81,169.76,0.005985]
[1641228838020,10.26309368,169.81,169.76,0.005985]
[1641228838421,10.76309368,169.81,169.76,0.005985]
[1641228838919,10.26309368,169.81,169.76,0.005985]
[1641228839823,8.8364,169.81,169.76,0.005985]
[1641228840724,57.2319,169.83,169.76,0.005985]
[1641228842252,53.8354,169.82,169.75,8.601785]
[1641228842453,8.8354,169.82,169.75,8.601785]
[1641228843455,8.8354,169.82,169.75,10.917771]
[1641228846759,57.2315,169.83,169.75,10.917771]
[1641228847056,57.7315,169.83,169.75,10.917771]
[1641228848058,57.2315,169.83,169.75,10.917771]
[1641228848257,57.2315,169.83,169.75,10.417771]